bitfinex-derivatives/quotes_SOLF0:USTF0_20260204
["timestamp","ask_amount","ask_price","bid_price","bid_amount"]
[1770188772417,8.04713231,97.622,97.571,72.78359283]
[1770188772618,90.42596208,97.62,97.571,72.78359283]
[1770188772823,81.19406208,97.61,97.554,72.78359283]
[1770188773027,85.88267661,97.609,97.554,72.78359283]
[1770188773224,8.04713231,97.608,97.554,72.78359283]
[1770188773416,8.04713231,97.607,97.554,72.78359283]
[1770188773619,8.04713231,97.606,97.554,72.78359283]
[1770188773921,77.8355443,97.609,97.554,72.78359283]
[1770188774114,8.04364714,97.608,97.554,72.78359283]
[1770188774322,8.04364714,97.607,97.554,72.78359283]
[1770188774524,77.8355443,97.609,97.554,72.78359283]
[1770188774826,8.0415859,97.608,97.556,72.78359283]
[1770188775027,8.0415859,97.607,97.556,72.78359283]
[1770188775326,77.8355443,97.609,97.556,72.78359283]
[1770188775527,8.04042167,97.608,97.556,72.78359283]
[1770188775726,8.04042167,97.607,97.556,72.78359283]
[1770188775922,77.8355443,97.609,97.556,72.78359283]
[1770188776131,3.35851778,97.59,97.542,72.78359283]
[1770188776523,77.8355443,97.599,97.542,72.78359283]
[1770188776724,8.03905831,97.598,97.542,72.78359283]
[1770188776927,8.03905831,97.597,97.542,72.78359283]
[1770188777227,8.03905831,97.596,97.544,72.78359283]
[1770188777428,8.03905831,97.595,97.544,72.78359283]
[1770188777622,8.03905831,97.594,97.544,72.78359283]
[1770188777823,8.03905831,97.593,97.544,72.78359283]
[1770188778126,77.8355443,97.599,97.544,72.78359283]
[1770188778127,8.03905831,97.592,97.544,72.78359283]
[1770188778323,77.8355443,97.589,97.53,72.78359283]
[1770188778528,153.13178858,97.617,97.53,72.78359283]
[1770188778529,77.8355443,97.579,97.53,72.78359283]
[1770188778726,77.8355443,97.57,97.521,72.78359283]
[1770188779231,8.09093751,97.569,97.521,72.78359283]
[1770188779525,77.8355443,97.567,97.521,72.78359283]
[1770188779731,81.19406208,97.56,97.507,72.78359283]
[1770188780031,85.92215293,97.559,97.507,72.78359283]
[1770188780232,3.35851778,97.55,97.507,72.78359283]
[1770188780526,77.8355443,97.539,97.491,408.76]
[1770188780934,77.8355443,97.539,97.489,72.78359283]
[1770188781235,77.8355443,97.539,97.443,143.8674]
[1770188781236,74.87536055,97.524,97.464,75.22666727]
[1770188781429,3.35851778,97.52,97.464,75.22666727]
[1770188781633,74.87536055,97.524,97.464,75.22666727]
[1770188781838,3.35851778,97.51,97.464,75.22666727]
[1770188782128,3.35851778,97.51,97.45,3.35851778]
[1770188782129,78.23387833,97.51,97.45,78.58518505]
[1770188782331,74.87536055,97.499,97.45,75.22666727]
[1770188782539,143.7468,97.525,97.434,75.22666727]
[1770188782540,3.35851778,97.48,97.434,75.22666727]
[1770188782828,74.87536055,97.507,97.45,3.35851778]
[1770188783031,74.87536055,97.539,97.48,78.58518505]
[1770188783337,78.23387833,97.51,97.452,75.22666727]
[1770188783533,3.35851778,97.5,97.452,75.22666727]
[1770188783736,3.35851778,97.49,97.437,75.22666727]
[1770188783934,74.87536055,97.489,97.437,75.22666727]
[1770188785337,74.87536055,97.505,97.442,75.22666727]
[1770188785939,74.87536055,97.505,97.444,75.22666727]
[1770188789138,74.87536055,97.523,97.444,84.47516727]
[1770188790831,74.87536055,97.521,97.444,84.47516727]
[1770188792437,74.87536055,97.521,97.456,75.22666727]
[1770188792649,74.87536055,97.539,97.461,75.22666727]
[1770188793146,74.87536055,97.539,97.457,409.1]
[1770188793147,74.87536055,97.555,97.486,75.22666727]
[1770188793439,74.87536055,97.555,97.485,143.8047]
[1770188793440,74.87536055,97.555,97.488,75.22666727]
[1770188793641,74.87536055,97.555,97.499,75.22666727]
[1770188796446,74.87536055,97.572,97.507,75.22666727]
[1770188796939,74.87536055,97.572,97.512,75.22666727]
[1770188797549,74.87536055,97.572,97.514,75.22666727]
[1770188798139,74.87536055,97.591,97.524,75.22666727]
[1770188798745,74.87536055,97.619,97.534,75.22666727]
[1770188798947,9.2319,97.62,97.534,75.22666727]
[1770188798948,74.87536055,97.617,97.534,75.22666727]
[1770188799140,74.87536055,97.615,97.534,75.22666727]
[1770188799337,74.87536055,97.613,97.534,75.22666727]
[1770188799747,74.87536055,97.613,97.539,75.22666727]
[1770188800145,9.2319,97.62,97.539,75.22666727]
[1770188800146,74.87536055,97.611,97.539,75.22666727]
[1770188800946,74.87536055,97.611,97.545,75.22666727]
[1770188801347,74.87536055,97.609,97.545,75.22666727]
[1770188801648,74.87536055,97.607,97.545,75.22666727]
[1770188801851,74.87536055,97.607,97.533,9.2401]
[1770188802048,74.87536055,97.605,97.533,9.2401]
[1770188802345,74.87536055,97.603,97.534,75.22666727]
[1770188802551,74.87536055,97.601,97.534,75.22666727]
[1770188802945,74.87536055,97.596,97.519,84.46806727]
[1770188803248,74.87536055,97.594,97.519,84.46806727]
[1770188803438,74.87536055,97.592,97.519,84.46806727]
[1770188803641,74.87536055,97.588,97.519,84.46806727]
[1770188803841,74.87536055,97.586,97.519,84.46806727]
[1770188804049,74.87536055,97.584,97.519,84.46806727]
[1770188804448,74.87536055,97.582,97.519,84.46806727]
[1770188806349,74.87536055,97.58,97.519,84.46806727]
[1770188806555,84.11146055,97.575,97.519,75.22666727]
[1770188808151,8.13370294,97.574,97.519,75.22666727]
[1770188808350,8.13370294,97.573,97.519,75.22666727]
[1770188808553,84.11146055,97.575,97.519,75.22666727]
[1770188808855,8.13370327,97.574,97.521,75.22666727]
[1770188809056,8.13370327,97.573,97.521,75.22666727]
[1770188809256,8.13370327,97.572,97.521,75.22666727]
[1770188809456,74.87536055,97.575,97.521,75.22666727]
[1770188809652,8.13814618,97.574,97.522,9.2411]
[1770188809857,8.13814618,97.573,97.522,84.46776727]
[1770188810061,8.13814618,97.572,97.522,84.46776727]
[1770188810256,8.13814618,97.571,97.522,84.46776727]
[1770188810557,8.13814618,97.57,97.522,84.46776727]
[1770188810751,8.13814618,97.569,97.522,84.46776727]
[1770188810952,74.87536055,97.575,97.522,84.46776727]
[1770188811259,8.14305296,97.574,97.522,84.46776727]
[1770188811455,8.14305296,97.573,97.522,84.46776727]
[1770188811651,8.14305296,97.572,97.522,75.22666727]
[1770188811953,9.2351,97.586,97.522,75.22666727]
[1770188811954,88.87079424,97.57,97.522,75.22666727]
[1770188812255,3.36396727,97.54,97.483,76.27821256]
[1770188812453,76.27022697,97.55,97.483,76.27821256]
[1770188812654,76.27022697,97.545,97.483,76.27821256]
[1770188812859,76.27022697,97.543,97.483,76.27821256]
[1770188813160,76.27022697,97.541,97.483,76.27821256]
[1770188813357,76.27022697,97.536,97.471,9.2459]
[1770188813560,76.27022697,97.534,97.467,76.27821256]
[1770188813766,76.27022697,97.519,97.452,76.27821256]
[1770188813964,76.27022697,97.51,97.452,76.27821256]
[1770188814168,76.27022697,97.508,97.452,76.27821256]
[1770188814371,76.27022697,97.506,97.452,76.27821256]
[1770188814567,76.27022697,97.504,97.436,76.27821256]
[1770188814765,76.27022697,97.502,97.436,76.27821256]
[1770188814963,76.27022697,97.496,97.436,76.27821256]
[1770188815164,76.27022697,97.494,97.436,76.27821256]
[1770188815360,143.7688,97.511,97.428,264.04]
[1770188815361,76.27022697,97.49,97.428,264.04]
[1770188815565,76.27022697,97.474,97.396,9.253]
[1770188815862,76.27022697,97.467,97.395,76.27821256]
[1770188816068,76.27022697,97.453,97.378,76.27821256]
[1770188816261,76.27022697,97.451,97.378,76.27821256]
[1770188816466,85.51832697,97.449,97.378,76.27821256]
[1770188816663,76.07246674,97.447,97.378,76.27821256]
[1770188817663,76.07246674,97.475,97.406,72.2088989]
[1770188817863,76.07246674,97.473,97.406,72.2088989]
[1770188818068,84.2468025,97.472,97.406,72.2088989]
[1770188818270,84.2468025,97.471,97.406,72.2088989]
[1770188818470,84.2468025,97.47,97.406,72.2088989]
[1770188818659,8.17433576,97.469,97.406,72.2088989]
[1770188818863,8.17433576,97.468,97.406,72.2088989]
[1770188819167,76.07246674,97.47,97.397,143.9354]
[1770188819168,76.07246674,97.47,97.408,72.2088989]
[1770188820268,8.17168444,97.469,97.408,72.2088989]
[1770188820465,76.07246674,97.47,97.408,72.2088989]
[1770188820661,76.07246674,97.5,97.412,72.2088989]
[1770188820968,8.41785233,97.52,97.41,8.41785233]
[1770188820969,76.07246674,97.498,97.419,72.2088989]
[1770188821161,76.07246674,97.514,97.434,72.2088989]
[1770188821363,8.17015096,97.513,97.436,72.2088989]
[1770188821566,8.17015096,97.512,97.436,72.2088989]
[1770188821766,8.17015096,97.511,97.438,72.2088989]
[1770188821970,8.17015096,97.51,97.438,72.2088989]
[1770188822160,76.07246674,97.508,97.438,72.2088989]
[1770188822361,8.17015096,97.507,97.438,72.2088989]
[1770188822570,8.17015096,97.506,97.438,72.2088989]
[1770188822766,76.07246674,97.504,97.438,72.2088989]
[1770188822967,76.07246674,97.498,97.411,72.2088989]
[1770188823168,76.07246674,97.496,97.411,72.2088989]
[1770188823363,76.07246674,97.494,97.411,72.2088989]
[1770188823564,76.07246674,97.494,97.405,411.99948636]
[1770188823565,76.07246674,97.488,97.416,72.2088989]
[1770188823864,76.07246674,97.486,97.416,72.2088989]
[1770188824065,76.07246674,97.484,97.416,72.2088989]
[1770188824260,219.88266674,97.482,97.405,2.77948636]
[1770188824462,76.07246674,97.469,97.405,2.77948636]
[1770188824658,76.07246674,97.467,97.405,2.77948636]
[1770188824867,76.07246674,97.465,97.405,2.77948636]
[1770188825068,76.07246674,97.463,97.405,2.77948636]
[1770188825266,76.07246674,97.461,97.405,2.77948636]
[1770188825569,8.17015096,97.46,97.405,2.77948636]
[1770188825769,8.17015096,97.459,97.405,2.77948636]
[1770188825970,8.17015096,97.458,97.405,2.77948636]
[1770188826170,76.07246674,97.461,97.405,2.77948636]
[1770188826370,8.15586154,97.46,97.405,74.98838526]
[1770188826571,76.07246674,97.461,97.405,74.98838526]
[1770188828264,76.07246674,97.477,97.407,72.2088989]
[1770188828471,8.15023925,97.476,97.407,72.2088989]
[1770188828667,8.41785233,97.51,97.439,72.2088989]
[1770188828668,76.07246674,97.51,97.439,72.2088989]
[1770188828868,8.14785648,97.509,97.439,72.2088989]
[1770188829074,76.07246674,97.51,97.447,72.2088989]
[1770188829264,8.14797428,97.509,97.447,72.2088989]
[1770188829570,9.2411,97.522,97.449,72.2088989]
[1770188829766,8.14797428,97.521,97.449,72.2088989]
[1770188830074,8.14797428,97.52,97.449,72.2088989]
[1770188830273,8.14797428,97.519,97.449,72.2088989]
[1770188830572,8.14797428,97.518,97.449,72.2088989]
[1770188830771,8.14797428,97.517,97.449,72.2088989]
[1770188830969,8.14797428,97.517,97.438,409.3]
[1770188830970,76.07246674,97.515,97.438,409.3]
[1770188831166,76.07246674,97.499,97.433,72.2088989]
[1770188831369,76.07246674,97.497,97.433,72.2088989]
[1770188831574,76.07246674,97.495,97.433,72.2088989]
[1770188831769,76.07246674,97.493,97.433,72.2088989]
[1770188833774,76.07246674,97.493,97.436,72.2088989]
[1770188834475,76.07246674,97.516,97.443,72.2088989]
[1770188834674,8.1466323,97.515,97.443,72.2088989]
[1770188834874,8.1466323,97.514,97.443,72.2088989]
[1770188835076,8.1466323,97.513,97.443,72.2088989]
[1770188835276,76.07246674,97.516,97.443,72.2088989]
[1770188835477,8.14663756,97.515,97.443,72.2088989]
[1770188835780,8.14663756,97.514,97.457,72.2088989]
[1770188835972,8.14663756,97.513,97.457,72.2088989]
[1770188836272,76.07246674,97.516,97.457,72.2088989]
[1770188836475,8.14664551,97.515,97.457,72.2088989]
[1770188836678,8.14664551,97.514,97.457,72.2088989]
[1770188836870,8.14664551,97.513,97.457,72.2088989]
[1770188837075,76.07246674,97.516,97.457,72.2088989]
[1770188837276,8.14665235,97.515,97.457,72.2088989]
[1770188837572,8.14665235,97.514,97.457,72.2088989]
[1770188837778,9.2404,97.53,97.461,72.2088989]
[1770188837981,9.2406,97.528,97.461,72.2088989]
[1770188838180,8.14569101,97.527,97.461,72.2088989]
[1770188838380,8.14569101,97.526,97.461,72.2088989]
[1770188838582,8.14569101,97.525,97.461,72.2088989]
[1770188838775,85.31306674,97.528,97.461,72.2088989]
[1770188838983,85.31346674,97.523,97.461,72.2088989]
[1770188839284,8.14558164,97.522,97.461,72.2088989]
[1770188839481,8.14558164,97.521,97.461,72.2088989]
[1770188839681,9.2414,97.519,97.461,72.2088989]
[1770188839877,76.07246674,97.517,97.451,409.28]
[1770188840077,76.07246674,97.515,97.451,409.28]
[1770188840273,76.07246674,97.513,97.451,409.28]
[1770188840481,9.2426,97.507,97.451,409.28]
[1770188840779,84.21928178,97.506,97.451,409.28]
[1770188840983,78.06198742,97.504,97.451,409.28]
[1770188841183,78.06198742,97.503,97.451,409.28]
[1770188841882,9.2433,97.5,97.451,409.28]
[1770188843787,78.06198742,97.499,97.444,72.2088989]
[1770188843982,78.06198742,97.495,97.444,72.2088989]
[1770188845186,8.16019175,97.494,97.444,72.2088989]
[1770188845387,78.06198742,97.495,97.444,72.2088989]
[1770188845583,8.16019175,97.494,97.444,72.2088989]
[1770188845786,8.41785233,97.52,97.42,553.1603]
[1770188845787,78.06198742,97.543,97.454,143.8508]
[1770188845979,78.06198742,97.541,97.458,74.30566714]
[1770188846189,8.15784061,97.54,97.458,74.30566714]
[1770188846384,86.21982803,97.539,97.458,74.30566714]
[1770188846688,8.15784061,97.538,97.458,74.30566714]
[1770188846891,78.06198742,97.536,97.461,74.30566714]
[1770188847091,78.06198742,97.534,97.461,74.30566714]
[1770188847387,78.06198742,97.532,97.461,74.30566714]
[1770188847588,78.06198742,97.53,97.461,74.30566714]
[1770188847788,8.15784061,97.529,97.461,74.30566714]
[1770188847984,8.15784061,97.528,97.461,74.30566714]
[1770188848191,8.15784061,97.527,97.461,74.30566714]
[1770188848488,8.15784061,97.526,97.461,74.30566714]
[1770188848688,17.39874061,97.525,97.461,74.30566714]
[1770188848889,8.15784061,97.524,97.461,74.30566714]
[1770188849090,8.15784061,97.523,97.461,74.30566714]
[1770188849289,8.15784061,97.522,97.461,74.30566714]
[1770188849491,8.15784061,97.521,97.461,74.30566714]
[1770188849788,8.15784061,97.52,97.461,74.30566714]
[1770188849991,8.15784061,97.519,97.461,74.30566714]
[1770188850290,8.15784061,97.518,97.461,74.30566714]
[1770188850486,8.15784061,97.517,97.461,74.30566714]
[1770188850682,8.15784061,97.516,97.461,74.30566714]
[1770188850883,9.2411,97.522,97.461,74.30566714]
[1770188851082,8.17837123,97.521,97.461,74.30566714]
[1770188851288,8.17837123,97.52,97.461,74.30566714]
[1770188851491,8.17837123,97.519,97.461,74.30566714]
[1770188851691,8.17837123,97.519,97.45,274.73785233]
[1770188851692,8.17837123,97.518,97.463,74.30566714]
[1770188851891,8.17837123,97.517,97.463,74.30566714]
[1770188852094,8.17837123,97.516,97.463,74.30566714]
[1770188852293,8.17837123,97.515,97.463,74.30566714]
[1770188852483,8.17837123,97.514,97.463,74.30566714]
[1770188852689,8.17837123,97.513,97.463,74.30566714]
[1770188852884,8.17837123,97.512,97.463,74.30566714]
[1770188853096,78.06198742,97.51,97.45,266.32]
[1770188853294,78.06198742,97.506,97.45,266.32]
[1770188853494,78.06198742,97.504,97.45,266.32]
[1770188853695,78.06198742,97.502,97.45,266.32]
[1770188853997,78.06198742,97.5,97.45,266.32]
[1770188854192,8.18618583,97.499,97.45,266.32]
[1770188854392,8.18618583,97.498,97.45,266.32]
[1770188854591,8.18618583,97.497,97.45,266.32]
[1770188854794,8.18618583,97.496,97.45,340.62566714]
[1770188854992,8.18618583,97.495,97.45,340.62566714]
[1770188855190,8.18618583,97.494,97.45,340.62566714]
[1770188855396,8.18618583,97.493,97.45,74.30566714]
[1770188855598,8.18618583,97.492,97.452,74.30566714]
[1770188855895,8.18618583,97.491,97.452,74.30566714]
[1770188856095,8.18618583,97.49,97.452,74.30566714]
[1770188856297,8.18618583,97.489,97.452,74.30566714]
[1770188856496,8.18618583,97.488,97.452,74.30566714]
[1770188856699,8.18618583,97.487,97.452,74.30566714]
[1770188856995,8.18618583,97.486,97.452,74.30566714]
[1770188857190,8.18618583,97.485,97.452,74.30566714]
[1770188857387,8.18618583,97.484,97.452,74.30566714]
[1770188857585,8.18618583,97.483,97.452,74.30566714]
[1770188857796,78.06198742,97.518,97.454,74.30566714]
[1770188857996,8.18033936,97.517,97.454,74.30566714]
[1770188858192,8.18033936,97.516,97.454,74.30566714]
[1770188858500,8.18033936,97.515,97.454,74.30566714]
[1770188858696,8.18033936,97.514,97.459,74.30566714]
[1770188858894,8.18033936,97.513,97.459,74.30566714]
[1770188859196,78.06198742,97.511,97.459,74.30566714]
[1770188859394,78.06198742,97.509,97.459,74.30566714]
[1770188859590,86.24232678,97.508,97.439,74.30566714]
[1770188859792,86.24232678,97.508,97.396,143.937]
[1770188859793,78.06198742,97.486,97.406,74.30566714]
[1770188860095,78.06198742,97.484,97.406,74.30566714]
[1770188860296,78.06198742,97.482,97.422,9.2506]
[1770188860494,78.06198742,97.48,97.422,9.2506]
[1770188860697,8.18033936,97.479,97.406,74.30566714]
[1770188860894,8.18033936,97.478,97.406,74.30566714]
[1770188861093,8.18033936,97.477,97.412,74.30566714]
[1770188861400,8.18033936,97.476,97.412,74.30566714]
[1770188861704,143.7903,97.496,97.405,2.77948636]
[1770188861705,78.06198742,97.459,97.405,2.77948636]
[1770188861998,78.06198742,97.45,97.376,74.30566714]
[1770188862191,78.06198742,97.448,97.376,74.30566714]
[1770188862387,78.06198742,97.446,97.376,74.30566714]
[1770188862597,78.06198742,97.444,97.376,74.30566714]
[1770188862797,8.18033936,97.443,97.376,74.30566714]
[1770188862999,8.18033936,97.442,97.376,74.30566714]
[1770188863196,8.41785233,97.46,97.365,143.9815]
[1770188863197,8.18033936,97.441,97.379,74.30566714]
[1770188863400,9.51938858,97.472,97.401,74.30566714]
[1770188863599,9.51938858,97.475,97.403,74.30566714]
[1770188863899,78.06198742,97.458,97.376,74.30566714]
[1770188864097,78.06198742,97.458,97.376,483.58566714]
[1770188864302,78.06198742,97.454,97.377,74.30566714]
[1770188865801,78.06198742,97.439,97.358,9.2567]
[1770188866001,87.581376,97.437,97.358,83.56236714]
[1770188866201,78.06198742,97.437,97.363,74.30566714]
[1770188867595,78.06198742,97.437,97.37,74.30566714]
[1770188867897,78.06198742,97.437,97.371,74.30566714]
[1770188868094,78.06198742,97.437,97.354,74.30566714]
[1770188868805,143.87,97.442,97.354,74.30566714]
[1770188868806,78.06198742,97.419,97.354,74.30566714]
[1770188869807,78.06198742,97.409,97.354,74.30566714]
[1770188870706,78.06198742,97.409,97.336,74.30566714]
[1770188871809,9.2526,97.402,97.336,74.30566714]
[1770188873404,70.94916462,97.425,97.346,144.0096]
[1770188873712,143.8229,97.474,97.344,71.50325898]
[1770188873713,70.94916462,97.442,97.371,71.50325898]
[1770188874108,70.94916462,97.44,97.371,71.50325898]
[1770188874711,70.94916462,97.437,97.371,71.50325898]
[1770188875412,70.94916462,97.435,97.371,71.50325898]
[1770188875616,79.06188361,97.434,97.371,71.50325898]
[1770188875816,70.94916462,97.432,97.371,71.50325898]
[1770188876115,70.94916462,97.427,97.334,71.50325898]
[1770188876306,70.94916462,97.425,97.334,71.50325898]
[1770188876510,71.39809056,97.423,97.334,71.50325898]
[1770188876809,71.39809056,97.421,97.334,71.50325898]
[1770188877011,71.39809056,97.419,97.334,71.50325898]
[1770188877213,80.64919056,97.417,97.345,76.81807599]
[1770188877415,71.39809056,97.415,97.345,76.81807599]
[1770188877715,9.2511,97.417,97.345,76.81807599]
[1770188877716,71.39809056,97.413,97.345,76.81807599]
[1770188878714,71.39809056,97.413,97.347,9.2577]
[1770188878910,143.881,97.434,97.347,9.2577]
[1770188878911,71.39809056,97.406,97.347,76.81807599]
[1770188879113,71.39809056,97.406,97.33,417.95515213]
[1770188879114,71.39809056,97.404,97.33,76.81807599]
[1770188879309,71.39809056,97.404,97.335,9.2588]
[1770188879510,71.39809056,97.392,97.33,76.81807599]
[1770188879710,8.43515213,97.4,97.276,18.5289]
[1770188879711,71.39809056,97.39,97.312,76.81807599]
[1770188879917,8.43515213,97.4,97.312,76.81807599]
[1770188879918,71.39809056,97.388,97.312,86.07907599]
[1770188880111,71.39809056,97.38,97.312,86.07907599]
[1770188880311,71.39809056,97.378,97.291,76.81807599]
[1770188880515,71.39809056,97.376,97.291,76.81807599]
[1770188880716,71.39809056,97.374,97.291,76.81807599]
[1770188880912,71.39809056,97.365,97.291,76.81807599]
[1770188881107,71.39809056,97.356,97.274,76.81807599]
[1770188881306,71.39809056,97.354,97.274,76.81807599]
[1770188881614,143.9703,97.374,97.277,76.81807599]
[1770188881615,71.39809056,97.352,97.277,76.81807599]
[1770188882515,71.39809056,97.352,97.285,76.81807599]
[1770188882708,153.45608858,97.397,97.284,144.1024]
[1770188882709,71.39809056,97.371,97.293,76.81807599]
[1770188883717,71.39809056,97.371,97.292,144.091]
[1770188883718,71.39809056,97.371,97.298,76.81807599]
[1770188884113,71.39809056,97.371,97.301,76.81807599]
[1770188885917,71.39809056,97.371,97.305,76.81807599]
[1770188887819,71.39809056,97.371,97.31,76.81807599]
[1770188888318,30.76,97.408,97.31,76.81807599]
[1770188888319,71.39809056,97.425,97.33,76.81807599]
[1770188888516,8.43515213,97.43,97.33,76.81807599]
[1770188888517,71.39809056,97.422,97.33,76.81807599]
[1770188889710,71.39809056,97.412,97.336,76.81807599]
[1770188890418,71.39809056,97.408,97.34,76.81807599]
[1770188891122,71.39809056,97.408,97.35,76.81807599]
[1770188895328,71.39809056,97.424,97.34,76.81807599]
[1770188895519,71.39809056,97.419,97.34,76.81807599]
[1770188895719,8.43515213,97.42,97.34,76.81807599]
[1770188895720,71.39809056,97.417,97.34,76.81807599]
[1770188896021,71.39809056,97.415,97.34,76.81807599]
[1770188896221,71.39809056,97.413,97.34,76.81807599]
[1770188896423,71.39809056,97.411,97.34,76.81807599]
[1770188896823,71.39809056,97.411,97.346,9.2577]
[1770188897220,71.39809056,97.409,97.346,9.2577]
[1770188897430,71.39809056,97.407,97.346,9.2577]
[1770188897726,71.39809056,97.405,97.346,9.2577]
[1770188897922,79.54955938,97.404,97.346,9.2577]
[1770188898125,9.2511,97.417,97.346,9.2577]
[1770188898126,79.54955938,97.403,97.346,9.2577]
[1770188898327,79.54955938,97.402,97.346,9.2577]
[1770188898518,79.54955938,97.401,97.346,9.2577]
[1770188898722,8.15146882,97.4,97.346,9.2577]
[1770188898923,71.39809056,97.401,97.346,9.2577]
[1770188899130,8.15574747,97.4,97.346,9.2577]
[1770188899428,8.15574747,97.399,97.346,9.2577]
[1770188899627,8.15574747,97.398,97.346,9.2577]
[1770188899827,71.39809056,97.401,97.346,9.2577]
[1770188900027,8.15992408,97.4,97.346,9.2577]
[1770188900228,8.15992408,97.399,97.346,9.2577]
[1770188900429,71.39809056,97.401,97.346,9.2577]
[1770188900430,8.15992408,97.398,97.346,9.2577]
[1770188900628,8.15992408,97.397,97.346,9.2577]
[1770188900829,8.15992408,97.396,97.346,9.2577]
[1770188901034,71.39809056,97.401,97.346,9.2577]
[1770188901237,8.16995194,97.4,97.346,9.2577]
[1770188901429,8.16995194,97.399,97.346,9.2577]
[1770188901630,8.16995194,97.398,97.34,76.81807599]
[1770188901832,8.16995194,97.397,97.34,76.81807599]
[1770188902032,8.16995194,97.396,97.34,76.81807599]
[1770188902232,8.16995194,97.395,97.34,76.81807599]
[1770188902428,8.16995194,97.394,97.34,76.81807599]
[1770188902735,8.16995194,97.393,97.34,76.81807599]
[1770188903035,71.39809056,97.401,97.34,76.81807599]
[1770188903036,8.16995194,97.392,97.34,76.81807599]
[1770188903231,8.16995194,97.391,97.34,76.81807599]
[1770188903431,8.16995194,97.39,97.34,76.81807599]
[1770188903638,8.16995194,97.389,97.34,76.81807599]
[1770188903936,8.16995194,97.388,97.343,71.85602253]
[1770188904139,8.16995194,97.387,97.343,71.85602253]
[1770188904332,8.16995194,97.386,97.343,71.85602253]
[1770188904533,8.16995194,97.385,97.343,71.85602253]
[1770188904728,8.16995194,97.384,97.343,71.85602253]
[1770188904928,8.19525169,97.383,97.343,71.85602253]
[1770188905138,8.19525169,97.382,97.343,71.85602253]
[1770188905334,8.19525169,97.381,97.343,71.85602253]
[1770188905538,8.19525169,97.38,97.343,71.85602253]
[1770188905840,8.19525169,97.379,97.343,71.85602253]
[1770188906136,8.19525169,97.378,97.334,71.85602253]
[1770188906337,8.19525169,97.377,97.334,71.85602253]
[1770188906538,9.54438933,97.417,97.354,71.85602253]
[1770188906736,86.81635852,97.418,97.354,71.85602253]
[1770188907336,77.27196919,97.417,97.354,71.85602253]
[1770188907841,77.27196919,97.417,97.357,71.85602253]
[1770188908836,77.27196919,97.417,97.361,71.85602253]
[1770188909740,77.27196919,97.417,97.363,9.2562]
[1770188909935,77.27196919,97.417,97.363,71.85602253]
[1770188910238,77.27196919,97.417,97.373,71.85602253]
[1770188910439,12.67725358,97.445,97.373,71.85602253]
[1770188910440,9.54438933,97.43,97.373,71.85602253]
[1770188910639,77.27196919,97.433,97.373,71.85602253]
[1770188911738,77.27196919,97.433,97.378,71.85602253]
[1770188912743,77.27196919,97.425,97.363,71.85602253]
[1770188913042,143.8796,97.435,97.363,71.85602253]
[1770188913043,77.27196919,97.419,97.363,71.85602253]
[1770188913244,77.27196919,97.419,97.337,71.85602253]
[1770188913644,86.81635852,97.419,97.337,71.85602253]
[1770188914244,77.27196919,97.419,97.337,71.85602253]
[1770188914739,77.27196919,97.417,97.349,71.85602253]
[1770188915844,77.27196919,97.417,97.353,71.85602253]
[1770188917449,9.2515,97.413,97.353,71.85602253]
[1770188917642,77.27196919,97.412,97.353,71.85602253]
[1770188918448,77.27196919,97.412,97.32,144.049]
[1770188918449,77.27196919,97.397,97.305,71.85602253]
[1770188918648,143.9317,97.4,97.305,71.85602253]
[1770188918649,77.27196919,97.387,97.305,71.85602253]
[1770188918846,77.27196919,97.382,97.312,71.85602253]
[1770188919044,9.54438933,97.388,97.312,71.85602253]
[1770188919045,77.27196919,97.38,97.312,71.85602253]
[1770188919245,77.27196919,97.378,97.312,71.85602253]
[1770188919447,77.27196919,97.371,97.303,9.2618]
[1770188919649,77.27196919,97.367,97.303,9.2618]
[1770188919845,77.27196919,97.361,97.295,71.85602253]
[1770188920147,77.27196919,97.359,97.295,71.85602253]
[1770188920343,77.27196919,97.357,97.295,71.85602253]
[1770188920548,77.27196919,97.355,97.295,71.85602253]
[1770188920745,77.27196919,97.353,97.297,71.85602253]
[1770188920950,8.15660431,97.352,97.297,71.85602253]
[1770188921148,8.15660431,97.351,97.297,71.85602253]
[1770188921344,8.15660431,97.35,97.297,71.85602253]
[1770188921643,8.15660431,97.349,97.297,71.85602253]
[1770188921848,8.15660431,97.349,97.279,409.66]
[1770188921849,8.15660431,97.348,97.299,71.85602253]
[1770188922045,77.27196919,97.37,97.306,71.85602253]
[1770188922453,77.27196919,97.37,97.308,71.85602253]
[1770188923752,77.27196919,97.37,97.321,9.2601]
[1770188924650,77.27196919,97.37,97.321,81.11612253]
[1770188930151,77.27196919,97.37,97.204,25.1940295]
[1770188930152,77.27196919,97.365,97.28,80.29117466]
[1770188930545,86.81635852,97.365,97.28,80.29117466]
[1770188931354,77.27196919,97.365,97.294,76.30361366]
[1770188932248,77.27196919,97.365,97.289,144.0945]
[1770188932249,77.27196919,97.365,97.297,76.30361366]
[1770188933759,77.27196919,97.365,97.302,76.30361366]
[1770188934261,71.45371069,97.363,97.302,76.30361366]
[1770188934558,71.45371069,97.361,97.31,3.37898561]
[1770188934754,71.45371069,97.359,97.304,9.2618]